bitfinex/quotes_BTCUSD_20251207
["timestamp","ask_amount","ask_price","bid_price","bid_amount"]
[1765128586394,0.15002235,90728.0,90727.0,0.02406537]
[1765128586534,0.00150235,90728.0,90727.0,0.08718537]
[1765128586733,0.00023693,90728.0,90727.0,0.23585616]
[1765128586981,0.00023693,90728.0,90727.0,0.19743282]
[1765128587223,0.00023693,90728.0,90727.0,0.22928641]
[1765128587430,0.00023693,90728.0,90727.0,0.5406402]
[1765128587632,0.00023693,90728.0,90727.0,0.5396402]
[1765128587831,0.00023693,90728.0,90727.0,0.5406402]
[1765128588600,0.00023693,90728.0,90727.0,0.5396402]
[1765128588800,0.00023693,90728.0,90727.0,0.5416402]
[1765128589078,0.00023693,90728.0,90727.0,0.5466402]
[1765128589328,0.00023693,90728.0,90727.0,0.5446402]
[1765128589736,0.00023693,90728.0,90727.0,0.43321282]
[1765128589896,0.00023693,90728.0,90727.0,0.5476402]
[1765128590454,0.0002,90730.0,90729.0,0.02220738]
[1765128590591,0.0002,90730.0,90729.0,0.4297402]
[1765128590798,0.22029915,90786.0,90754.0,0.02220738]
[1765128590998,0.01101503,90785.0,90771.0,0.42600745]
[1765128591225,0.01829665,90772.0,90771.0,0.05189825]
[1765128591441,0.01833365,90772.0,90771.0,0.02306537]
[1765128591647,0.0016949,90772.0,90771.0,5.17675282]
[1765128591846,0.0016949,90772.0,90771.0,0.49975282]
[1765128592144,0.0016949,90772.0,90771.0,0.34641282]
[1765128592349,0.0046949,90772.0,90771.0,0.27253917]
[1765128592703,0.0046949,90772.0,90771.0,0.3235475]
[1765128592891,0.0046949,90772.0,90771.0,0.4157675]
[1765128593098,0.0046949,90772.0,90771.0,0.45314793]
[1765128593278,0.0046949,90772.0,90771.0,0.43697488]
[1765128593790,0.0016949,90772.0,90771.0,0.34575488]
[1765128593992,0.0026949,90772.0,90771.0,0.43279873]
[1765128594391,0.0026949,90772.0,90771.0,0.24440005]
[1765128594594,0.0026949,90772.0,90771.0,0.02406537]
[1765128595134,0.0026949,90772.0,90771.0,0.05181922]
[1765128595295,0.0026949,90772.0,90771.0,0.02506537]
[1765128595502,0.0026949,90772.0,90771.0,0.02541282]
[1765128595700,0.0026949,90772.0,90771.0,0.02506537]
[1765128596237,0.0026949,90772.0,90771.0,0.20690405]
[1765128596629,0.0027349,90772.0,90771.0,0.2356579]
[1765128596824,0.0027349,90772.0,90771.0,0.8985358]
[1765128597046,0.0027349,90772.0,90771.0,0.92074318]
[1765128597379,0.0027349,90772.0,90771.0,0.88241143]
[1765128597524,0.0027349,90772.0,90771.0,0.5682358]
[1765128597742,0.0027349,90772.0,90771.0,0.56975143]
[1765128598157,0.0027349,90772.0,90771.0,2.52355143]
[1765128598358,0.0027349,90772.0,90771.0,0.56975143]
[1765128598565,0.0027349,90772.0,90771.0,0.38308405]
[1765128598738,0.0027349,90772.0,90771.0,0.43400137]
[1765128598966,0.0027349,90772.0,90771.0,0.0420966]
[1765128598967,0.0483549,90772.0,90771.0,0.0420966]
[1765128599165,0.14692032,90772.0,90771.0,0.002]
[1765128599526,0.36725258,90772.0,90771.0,0.002]
[1765128600361,0.36625258,90772.0,90771.0,0.002]
[1765128600774,0.37225258,90772.0,90771.0,0.002]
[1765128601000,0.01101673,90771.0,90762.0,0.01101782]
[1765128601207,0.01101673,90771.0,90766.0,0.01101734]
[1765128601508,0.02171451,90772.0,90771.0,0.001]
[1765128601718,0.00043248,90772.0,90771.0,0.001]
[1765128601924,0.01243248,90772.0,90771.0,0.16480745]
[1765128602127,0.01243248,90772.0,90771.0,5.52074792]
[1765128602330,0.01243248,90772.0,90771.0,2.53490954]
[1765128602565,0.01243248,90772.0,90771.0,2.10908517]
[1765128602778,0.23125853,90808.0,90771.0,2.10908517]
[1765128602779,0.00025,90821.0,90820.0,2.40031581]
[1765128602995,0.00025,90821.0,90820.0,2.88745064]
[1765128602996,0.00036775,90821.0,90820.0,2.88745064]
[1765128603225,0.00036775,90821.0,90820.0,1.63966429]
[1765128603445,0.00036775,90821.0,90820.0,2.71724326]
[1765128603690,0.22014664,90849.0,90820.0,2.71724326]
[1765128603691,0.0046602,90850.0,90848.0,0.22014793]
[1765128603909,0.00477771,90850.0,90848.0,0.22049538]
[1765128604197,0.00477771,90850.0,90848.0,0.00034745]
[1765128604434,0.00477771,90850.0,90841.0,0.23117282]
[1765128604435,0.01225123,90871.0,90868.0,0.01078262]
[1765128604670,0.0023,90900.0,90876.0,1.87288748]
[1765128604915,0.0103916,90877.0,90876.0,1.47804903]
[1765128605185,0.0103916,90877.0,90876.0,1.49552903]
[1765128605440,0.0103916,90877.0,90876.0,0.62922327]
[1765128605690,0.0103916,90877.0,90876.0,0.22017755]
[1765128605910,0.0103916,90877.0,90872.0,0.03321186]
[1765128606171,0.0103916,90877.0,90874.0,0.01100424]
[1765128606383,0.0103916,90877.0,90859.0,0.01768]
[1765128606384,0.01100521,90866.0,90859.0,0.01768]
[1765128606597,0.00126542,90875.0,90860.0,0.323]
[1765128606806,0.01100436,90873.0,90866.0,0.23110937]
[1765128607048,0.00126542,90875.0,90872.0,0.01100448]
[1765128607247,0.00126542,90875.0,90874.0,0.02220738]
[1765128607465,0.00126542,90875.0,90870.0,0.01100473]
[1765128607466,0.0042873,90873.0,90871.0,0.01100461]
[1765128607671,0.0103916,90877.0,90874.0,0.01100424]
[1765128607901,0.0103916,90877.0,90875.0,0.22008253]
[1765128608115,0.0103916,90877.0,90876.0,0.323]
[1765128608317,0.0103916,90877.0,90874.0,0.01400424]
[1765128608318,0.01165702,90877.0,90874.0,0.003]
[1765128608515,0.01165702,90877.0,90874.0,0.01700424]
[1765128608664,0.01165702,90877.0,90875.0,0.22008253]
[1765128608871,0.09909542,90876.0,90874.0,0.007]
[1765128609072,0.23111012,90866.0,90854.0,0.01100667]
[1765128609271,0.00126542,90866.0,90861.0,0.01100582]
[1765128609542,0.09783,90865.0,90857.0,0.0110063]
[1765128609745,0.23114238,90854.0,90851.0,0.01703123]
[1765128610178,0.01100606,90859.0,90851.0,0.01703123]
[1765128610338,0.01100557,90863.0,90855.0,0.01100654]
[1765128610542,0.01703123,90882.0,90874.0,0.01100424]
[1765128610916,0.01703123,90882.0,90874.0,0.01135169]
[1765128611096,0.01703123,90882.0,90872.0,0.01100448]
[1765128611097,0.02139548,90877.0,90872.0,0.01100448]
[1765128611310,0.22008737,90873.0,90865.0,0.01100533]
[1765128611576,0.22008737,90873.0,90861.0,0.22311468]
[1765128611577,0.01100509,90867.0,90861.0,0.003]
[1765128611792,0.23111716,90863.0,90857.0,0.0110063]
[1765128611996,0.01100763,90846.0,90839.0,0.01703123]
[1765128612221,0.09556,90867.0,90835.0,0.01100897]
[1765128612222,0.01100836,90840.0,90835.0,0.01100897]
[1765128612415,0.06203,90850.0,90830.0,0.22019021]
[1765128612416,0.0110086,90838.0,90830.0,0.01100957]
[1765128612619,0.22015763,90844.0,90830.0,0.01100957]
[1765128612620,0.01100824,90841.0,90834.0,0.01100909]
[1765128612916,0.04937,90837.0,90834.0,0.01100909]
[1765128613126,0.04937,90837.0,90835.0,0.22017944]
[1765128613321,0.31573702,90836.0,90835.0,0.005]
[1765128613538,0.31573702,90836.0,90834.0,0.00020939]
[1765128613539,0.15759,90836.0,90834.0,0.00020939]
[1765128613758,0.15759,90835.0,90834.0,0.00020939]
[1765128613962,0.09682542,90835.0,90834.0,0.00070697]
[1765128614208,0.09682542,90835.0,90784.0,0.01101515]
[1765128614209,0.2202878,90791.0,90784.0,0.01101515]
[1765128614325,0.06038394,90794.0,90790.0,0.01101442]
[1765128614533,0.04937,90794.0,90792.0,0.22028372]
[1765128614739,0.04937,90802.0,90799.0,0.01101333]
[1765128614939,0.04937,90802.0,90793.0,0.22028129]
[1765128614940,0.01101357,90797.0,90789.0,0.01101455]
[1765128615143,0.05063542,90802.0,90799.0,0.01101333]
[1765128615352,0.01101054,90822.0,90810.0,0.011012]
[1765128615585,0.40609145,90840.0,90810.0,0.011012]
[1765128615586,0.22020497,90825.0,90812.0,0.22023521]
[1765128615784,0.01101054,90822.0,90817.0,0.01101115]
[1765128615997,0.00126542,90825.0,90822.0,0.2312215]
[1765128616198,0.00126542,90825.0,90822.0,0.01101054]
[1765128616398,0.00126542,90825.0,90821.0,0.01101066]
[1765128616642,0.22016375,90842.0,90831.0,0.22018802]
[1765128616873,0.22020881,90823.0,90821.0,0.00046496]
[1765128617188,0.09556,90822.0,90821.0,0.00011751]
[1765128617400,0.09682542,90822.0,90821.0,0.00011751]
[1765128617538,0.00126542,90822.0,90821.0,0.00011751]
[1765128617741,0.01100885,90836.0,90832.0,0.01100933]
[1765128617970,0.04937,90837.0,90834.0,0.23119037]
[1765128618171,0.23117517,90841.0,90834.0,0.23119037]
[1765128618172,0.01100776,90845.0,90841.0,0.01100824]
[1765128618392,0.01100776,90845.0,90834.0,0.00034745]
[1765128618393,0.22014903,90848.0,90834.0,0.22052911]
[1765128618619,0.01101018,90825.0,90821.0,0.00011751]
[1765128618817,0.04937,90840.0,90821.0,0.00011751]
[1765128619017,0.2202085,90824.0,90821.0,0.00011751]
[1765128619537,0.00126542,90824.0,90821.0,0.23133935]
[1765128619912,0.01100933,90832.0,90827.0,0.01100994]
[1765128620115,0.05137,90840.0,90830.0,0.01100957]
[1765128620316,0.05137,90840.0,90825.0,0.01101018]
[1765128620317,0.01100933,90832.0,90825.0,0.01101018]
[1765128620656,0.00126542,90835.0,90832.0,0.01100933]
[1765128620826,0.00126542,90835.0,90833.0,0.22018429]
[1765128621033,0.00126542,90835.0,90832.0,0.01100933]
[1765128621234,0.01227439,90835.0,90831.0,0.02220738]
[1765128621438,0.01100945,90831.0,90825.0,0.22054924]
[1765128621644,0.01227439,90835.0,90832.0,0.01100933]
[1765128621847,0.01227439,90835.0,90833.0,0.22018429]
[1765128621848,0.00126542,90835.0,90833.0,0.22018429]
[1765128622262,0.001,90835.0,90834.0,0.00034745]
[1765128622457,0.001,90835.0,90834.0,4.03431483]
[1765128622663,0.01100485,90869.0,90866.0,0.01100521]
[1765128622847,0.01100436,90873.0,90866.0,0.23110769]
[1765128623058,0.01100436,90873.0,90869.0,0.01100485]
[1765128623278,0.02100388,90877.0,90871.0,0.01100461]
[1765128623279,0.01,90877.0,90871.0,0.01100461]
[1765128623412,0.02100388,90877.0,90873.0,0.01100436]
[1765128623619,0.01,90877.0,90875.0,0.22008253]
[1765128623824,0.01039173,90877.0,90875.0,0.22008253]
[1765128624028,0.01039173,90877.0,90876.0,0.02220738]
[1765128624263,0.01479711,90877.0,90876.0,2.03663483]
[1765128624461,0.01579711,90877.0,90876.0,0.66855483]
[1765128624866,0.01579711,90877.0,90876.0,0.69463483]
[1765128625073,0.01479711,90877.0,90876.0,0.70768606]
[1765128625299,0.01479711,90877.0,90876.0,1.63566606]
[1765128625651,0.0023,90900.0,90890.0,5.56525358]
[1765128625791,0.0023,90900.0,90899.0,0.22002442]
[1765128625994,0.00241749,90900.0,90899.0,1.70785925]
[1765128626191,0.01,90930.0,90903.0,5.56522212]
[1765128626443,0.01,90930.0,90903.0,5.01904219]
[1765128626444,0.01099783,90927.0,90903.0,5.01904219]
[1765128626683,0.01099759,90929.0,90903.0,4.51316435]
[1765128626889,0.01099783,90927.0,90903.0,4.47323697]
[1765128627089,0.01099868,90920.0,90903.0,0.95464435]
[1765128627260,0.21995418,90929.0,90903.0,0.95464435]
[1765128627261,0.01099759,90929.0,90903.0,2.37004957]
[1765128627459,0.00209,90904.0,90903.0,2.34784219]
[1765128627629,0.00209,90904.0,90903.0,0.60999519]
[1765128627836,0.00209,90904.0,90903.0,0.26428957]
[1765128628055,0.00209,90904.0,90903.0,0.80744957]
[1765128628255,0.00209,90904.0,90903.0,4.09864219]
[1765128628462,9e-05,90904.0,90903.0,3.56404957]
[1765128628666,0.01,90930.0,90927.0,0.2199561]
[1765128628897,0.01,90930.0,90924.0,0.01099819]
[1765128628898,0.01011818,90930.0,90929.0,0.00034745]
[1765128629120,0.01011818,90930.0,90929.0,0.01772]
[1765128629343,0.01011818,90930.0,90929.0,0.32024483]
[1765128629557,0.01105651,90971.0,90954.0,0.21989137]
[1765128629768,0.01099396,90959.0,90954.0,0.04027483]
[1765128629981,6.4e-05,90971.0,90969.0,5.54285511]
[1765128630188,0.00031816,90970.0,90969.0,0.23761511]
[1765128630429,0.00031816,90970.0,90969.0,2.68517186]
[1765128630633,0.00031816,90970.0,90969.0,0.29697446]
[1765128630837,0.00031816,90970.0,90969.0,0.72541598]
[1765128631046,0.00031816,90970.0,90969.0,0.74762336]
[1765128631265,0.00031816,90970.0,90969.0,0.72541598]
[1765128631475,30.0607,91000.0,90989.0,0.21980678]
[1765128631682,30.0607,91000.0,90984.0,0.01099094]
[1765128631683,0.00169922,90990.0,90985.0,0.01776]
[1765128631894,0.00169922,90990.0,90988.0,0.2198092]
[1765128632100,0.00126542,90989.0,90986.0,0.02220738]
[1765128632315,0.01099118,90982.0,90972.0,0.02875239]
[1765128632532,0.01099118,90982.0,90979.0,0.01099154]
[1765128632533,0.00126542,90982.0,90979.0,0.01099154]
[1765128632747,0.00126542,90982.0,90980.0,0.21982853]
[1765128632960,0.0004338,90990.0,90989.0,0.21980678]
[1765128633164,0.0004338,90990.0,90989.0,0.22015423]
[1765128633533,0.0004338,90990.0,90989.0,0.31821176]
[1765128633737,0.00169922,90990.0,90989.0,0.31786431]
[1765128633944,0.00169922,90990.0,90989.0,0.26736428]
[1765128634153,0.00169922,90990.0,90989.0,0.28957166]
[1765128634584,0.00169922,90990.0,90969.0,0.21985499]
[1765128634585,0.21982365,90983.0,90969.0,0.21985499]
[1765128634795,0.219838,90977.0,90969.0,0.01099275]
[1765128635004,0.04937,90989.0,90983.0,0.01099106]
[1765128635207,0.00126542,90983.0,90981.0,0.21982611]
[1765128635355,0.00126542,90983.0,90982.0,0.02220738]
[1765128635572,0.00126542,90983.0,90982.0,0.0543948]
[1765128635784,0.0004338,90990.0,90988.0,0.24201658]
[1765128636106,0.0004338,90990.0,90989.0,0.08753691]
[1765128636931,0.0004338,90990.0,90989.0,2.27985483]
[1765128637133,0.0004338,90990.0,90988.0,0.2198092]
[1765128637478,0.00330463,90989.0,90988.0,0.02220738]
[1765128638048,0.00330463,90989.0,90980.0,0.01099142]
[1765128638049,0.01099142,90980.0,90968.0,0.21985752]
[1765128638289,0.22228034,90990.0,90988.0,0.001]
[1765128638546,0.09556,90989.0,90988.0,0.001]
[1765128638771,0.22028034,90990.0,90988.0,0.001]
[1765128639005,0.001,90989.0,90988.0,0.02320738]
[1765128639243,0.0004738,90990.0,90989.0,0.02220738]
[1765128639462,0.0004738,90990.0,90980.0,0.02220738]
[1765128639463,0.0109913,90981.0,90980.0,0.02220738]
[1765128639665,0.01099142,90980.0,90977.0,0.02220738]
[1765128639886,0.01099166,90978.0,90975.0,0.01703123]
[1765128640095,0.01225708,90978.0,90975.0,0.01703123]
[1765128640311,0.01225708,90978.0,90975.0,0.24766178]
[1765128640312,0.00126542,90978.0,90975.0,0.24766178]
[1765128640515,0.00126542,90978.0,90975.0,0.02782333]
[1765128640747,0.00126542,90978.0,90975.0,0.01099203]
[1765128640940,0.01225708,90978.0,90973.0,0.01099227]
[1765128641155,0.00126542,90976.0,90973.0,0.01099227]
[1765128641368,0.00126542,90976.0,90975.0,0.001]
[1765128641578,0.09437542,90976.0,90975.0,0.001]
[1765128642209,0.15625542,90976.0,90975.0,0.001]
[1765128642415,0.23086409,90963.0,90962.0,0.02220738]
[1765128642624,0.23086409,90963.0,90960.0,0.01127523]
[1765128642625,0.0109942,90957.0,90951.0,0.04578616]
[1765128642833,0.01099408,90958.0,90956.0,0.02220738]
[1765128643076,0.06033396,90959.0,90956.0,0.01099432]
[1765128643238,0.2198421,90975.0,90952.0,0.01703123]
[1765128643239,0.01099142,90980.0,90977.0,0.01099178]
[1765128643449,0.04934,90983.0,90979.0,0.01099154]
[1765128643663,0.04934,90983.0,90980.0,0.23081995]
[1765128643870,0.04973379,90983.0,90982.0,0.02220738]
[1765128644090,0.00039379,90983.0,90982.0,0.02220738]
[1765128644293,0.00352159,90983.0,90982.0,0.02220738]
[1765128644492,0.00352159,90983.0,90982.0,0.04964933]
[1765128644886,0.05286159,90983.0,90982.0,0.08167488]
[1765128645119,0.00352159,90983.0,90982.0,0.08167488]
[1765128645565,0.00352159,90983.0,90982.0,0.0594675]
[1765128645819,0.05286159,90983.0,90982.0,0.0604675]
[1765128646030,0.00352159,90983.0,90982.0,0.003]
[1765128646245,0.00352159,90983.0,90982.0,0.03197372]
[1765128646463,0.00352159,90983.0,90982.0,0.06462253]
[1765128646673,0.00352159,90983.0,90982.0,4.76331751]
[1765128646902,0.00352159,90983.0,90982.0,3.75897608]
[1765128647110,0.00352159,90983.0,90982.0,3.56157608]
[1765128647111,0.00552159,90983.0,90982.0,3.56157608]
[1765128647550,0.00552159,90983.0,90982.0,0.40960236]
[1765128647753,0.00552159,90983.0,90982.0,0.81180236]
[1765128647966,0.00552159,90983.0,90982.0,5.10230236]
[1765128648176,0.00352159,90983.0,90982.0,5.32317923]
[1765128648397,0.00352159,90983.0,90982.0,5.66838661]
[1765128648603,0.00352159,90983.0,90982.0,0.66938661]
[1765128648811,0.00352159,90983.0,90982.0,5.66938661]
[1765128649016,0.00352159,90983.0,90982.0,5.69872389]
[1765128649482,8.001e-05,90990.0,90989.0,0.54280678]
[1765128649698,8.001e-05,90990.0,90989.0,5.59721416]
[1765128649904,8.001e-05,90990.0,90989.0,5.65364121]
[1765128650116,8.001e-05,90990.0,90989.0,5.41162705]
[1765128650328,8.001e-05,90990.0,90989.0,5.45209383]
[1765128650532,8.001e-05,90990.0,90989.0,5.47430121]
[1765128650758,8.001e-05,90990.0,90989.0,5.67540121]
[1765128650978,0.00134543,90990.0,90989.0,1.0377796]
[1765128651201,0.00134543,90990.0,90989.0,0.02176]
[1765128651421,0.00134543,90990.0,90989.0,5.05539589]
[1765128651637,0.00134543,90990.0,90989.0,5.06196]
[1765128651851,0.00134543,90990.0,90989.0,5.07216738]
[1765128652278,0.00234543,90990.0,90989.0,5.07416738]
[1765128652488,0.00134543,90990.0,90989.0,2.75806738]
[1765128652698,0.00134543,90990.0,90989.0,0.04096738]
[1765128652902,0.00134543,90990.0,90989.0,0.04296738]
[1765128653115,0.00134543,90990.0,90989.0,0.04196738]
[1765128653369,0.00134543,90990.0,90989.0,0.02276]
[1765128653592,0.00134543,90990.0,90989.0,0.03395002]
[1765128653794,0.00134543,90990.0,90989.0,0.2093574]
[1765128654001,0.00134543,90990.0,90989.0,0.20325002]
[1765128654216,0.00134543,90990.0,90989.0,0.2254574]
[1765128654427,0.00134543,90990.0,90989.0,0.24817228]
[1765128654637,0.00134543,90990.0,90989.0,0.04247488]
[1765128654848,0.00234543,90990.0,90989.0,0.04047488]
[1765128655020,0.00134543,90990.0,90989.0,0.06268226]
[1765128655259,0.00134543,90990.0,90989.0,0.06468226]
[1765128655459,0.00134543,90990.0,90989.0,0.06668226]
[1765128655665,8.001e-05,90990.0,90989.0,0.06502971]
[1765128655848,8.001e-05,90990.0,90989.0,1.07630628]
[1765128656104,0.00108001,90990.0,90989.0,0.25368226]
[1765128656511,0.00108001,90990.0,90989.0,0.06268226]
[1765128656716,0.00108001,90990.0,90989.0,0.06290704]
[1765128656924,0.00108001,90990.0,90989.0,0.093147]
[1765128657420,0.00108001,90990.0,90989.0,0.06468226]
[1765128657630,0.15858001,90990.0,90989.0,0.02471488]
[1765128657837,0.15858001,90990.0,90989.0,0.02671488]
[1765128658054,0.17630001,90990.0,90989.0,0.002]
[1765128658262,0.01099239,90972.0,90969.0,0.02850238]
[1765128658485,0.01099239,90972.0,90966.0,0.03799491]
[1765128658486,0.01099275,90969.0,90966.0,0.03799491]
[1765128658701,0.01099275,90969.0,90961.0,0.02857337]
[1765128658702,0.23086309,90963.0,90961.0,0.02857337]
[1765128658908,0.23086309,90963.0,90955.0,0.02857337]
[1765128658909,0.21988653,90956.0,90955.0,0.02857337]
[1765128659123,0.21988653,90956.0,90955.0,0.02325826]
[1765128659347,0.31755195,90956.0,90955.0,0.02325826]
[1765128659571,0.01099565,90945.0,90944.0,0.02857337]
[1765128659782,0.23090878,90945.0,90944.0,0.02299967]
[1765128659990,0.38940878,90945.0,90944.0,0.02299967]
[1765128660661,0.38940878,90945.0,90944.0,0.00011816]
[1765128660886,0.38940878,90945.0,90944.0,0.02299967]
[1765128661129,0.04871,90955.0,90952.0,0.01099481]
[1765128661431,0.04871,90955.0,90951.0,0.21989618]
[1765128661432,0.01099456,90954.0,90953.0,0.02285442]
[1765128661661,0.01225974,90956.0,90955.0,0.02220738]
[1765128661870,0.00126542,90956.0,90955.0,0.0450618]
[1765128662516,0.00126542,90956.0,90955.0,0.02285442]
[1765128662762,0.15976542,90956.0,90955.0,0.02285442]
[1765128662975,0.21988895,90955.0,90953.0,0.02285442]
[1765128663182,0.0621,90954.0,90952.0,0.001]
[1765128663408,0.28199379,90953.0,90952.0,0.001]
[1765128663617,0.01225974,90956.0,90950.0,0.01099505]
[1765128663831,0.00126542,90956.0,90953.0,0.01099468]
[1765128664041,0.01099481,90952.0,90951.0,0.02284383]
[1765128664254,0.21991071,90946.0,90934.0,0.03047845]
[1765128664461,0.21993731,90935.0,90934.0,0.00190794]
[1765128664676,0.29916731,90935.0,90934.0,0.00190794]
[1765128664887,0.23706731,90935.0,90934.0,0.00190794]
[1765128665157,0.29916731,90935.0,90934.0,0.00190794]
[1765128665367,0.39556731,90935.0,90934.0,0.00190794]
[1765128665774,0.39556731,90935.0,90934.0,0.001384]
[1765128666656,0.39756731,90935.0,90934.0,0.001384]
[1765128667537,0.39556731,90935.0,90934.0,0.001384]
[1765128667755,0.01100158,90896.0,90885.0,0.01772]
[1765128667962,0.23105487,90888.0,90885.0,0.04039301]
[1765128668186,0.0621,90886.0,90885.0,0.00011818]
[1765128668598,0.1585,90886.0,90885.0,0.00156528]
[1765128669712,0.0964,90886.0,90885.0,0.00156528]
[1765128670146,0.0964,90886.0,90876.0,0.00305396]
[1765128670147,0.22007768,90877.0,90876.0,0.00305396]
[1765128670359,0.22007768,90877.0,90876.0,0.00317145]
[1765128670582,0.33868166,90877.0,90876.0,0.00317145]
[1765128670794,0.22011644,90861.0,90860.0,0.0004]
[1765128670999,0.31651644,90861.0,90860.0,0.00079173]
[1765128671517,0.31778186,90861.0,90860.0,0.00079173]
[1765128672209,0.31778186,90861.0,90822.0,0.00092384]
[1765128672210,0.01100994,90827.0,90822.0,0.01193438]
[1765128672430,0.03321113,90850.0,90826.0,0.00034745]
[1765128672653,0.09898,90860.0,90826.0,0.00034745]
[1765128672654,0.01100727,90849.0,90845.0,0.01100776]
[1765128672884,0.01100763,90846.0,90839.0,0.01100848]
[1765128673094,0.05010542,90849.0,90839.0,0.01100848]
[1765128673095,0.23116489,90845.0,90839.0,0.01100848]
[1765128673323,0.01100776,90845.0,90835.0,0.25339484]
[1765128673535,0.01100824,90841.0,90835.0,0.02220738]
[1765128673777,0.00126542,90845.0,90835.0,0.24238474]
[1765128674016,0.01100739,90848.0,90845.0,0.02220738]
[1765128674235,0.01100739,90848.0,90843.0,0.011008]
[1765128674444,0.01100776,90845.0,90840.0,0.01100836]
[1765128674864,0.09898,90845.0,90841.0,0.01100824]
[1765128675086,0.04884,90849.0,90844.0,0.01100788]
[1765128675327,0.01100582,90861.0,90856.0,0.01100642]
[1765128675530,0.04884,90865.0,90862.0,0.23111828]
[1765128675732,0.04884,90865.0,90861.0,0.01100582]
[1765128675733,0.05984533,90865.0,90861.0,0.01100582]
[1765128675944,0.04884,90865.0,90862.0,0.25332617]
[1765128676167,0.04884,90865.0,90861.0,0.01100582]
[1765128676168,0.05984533,90865.0,90864.0,0.0006205]
[1765128676588,0.04923328,90865.0,90864.0,0.0006205]
[1765128676796,0.00039328,90865.0,90864.0,0.2432845]
[1765128677004,0.00239328,90865.0,90864.0,5.56442712]
[1765128677220,0.00039328,90865.0,90864.0,5.5866345]
[1765128677421,0.10997964,90912.0,90892.0,0.22004136]
[1765128677635,0.01714922,90893.0,90892.0,0.23810881]
[1765128678083,0.01714922,90893.0,90892.0,0.26031619]
[1765128678492,0.01714922,90893.0,90892.0,0.01806745]
[1765128678617,0.01714922,90893.0,90892.0,0.00034745]
[1765128679180,0.01714922,90893.0,90892.0,0.003]
[1765128679181,0.11739464,90893.0,90892.0,0.003]
[1765128679700,0.01100533,90865.0,90862.0,0.0110057]
[1765128679851,0.01100545,90864.0,90859.0,0.01100606]
[1765128680051,0.04884,90864.0,90861.0,0.01100582]
[1765128680267,0.14782,90873.0,90870.0,0.01100473]
[1765128680471,0.04884,90873.0,90870.0,0.01100473]
[1765128680671,0.01829665,90893.0,90870.0,0.01100473]
[1765128680672,0.22005105,90888.0,90882.0,0.01100327]
[1765128680921,0.00011796,90888.0,90885.0,0.23106011]
[1765128681233,0.00011796,90888.0,90885.0,0.23140756]
[1765128681439,0.00011796,90888.0,90887.0,0.02220738]
[1765128681601,0.00011796,90888.0,90887.0,0.20455483]
[1765128681819,0.00011796,90888.0,90887.0,0.00034745]
[1765128682022,0.00011796,90888.0,90887.0,0.02255483]
[1765128683028,0.00011796,90888.0,90887.0,0.00034745]
[1765128683239,0.00011796,90888.0,90887.0,0.00634745]
[1765128683430,0.00011796,90888.0,90887.0,0.00034745]
[1765128683639,0.00011796,90888.0,90887.0,0.00334745]
[1765128683991,0.00011796,90888.0,90887.0,0.02755483]
[1765128684193,0.00011796,90888.0,90887.0,0.2476083]
[1765128684409,0.01100352,90880.0,90875.0,0.02220738]
[1765128684588,0.01100315,90883.0,90874.0,0.23711578]
[1765128684589,0.0110034,90881.0,90874.0,0.23711578]
[1765128684796,0.01100352,90880.0,90876.0,0.011004]
[1765128685002,0.01226882,90881.0,90880.0,0.02220738]
[1765128685003,0.00126542,90881.0,90880.0,0.02220738]
[1765128685418,0.00126542,90881.0,90878.0,0.01100376]
[1765128685419,0.10024542,90881.0,90878.0,0.01100376]
[1765128685655,0.10024542,90881.0,90877.0,0.00123634]
[1765128685656,0.22007526,90878.0,90877.0,0.00123634]
[1765128685888,0.31952068,90878.0,90877.0,0.00123634]
[1765128686136,0.31952068,90878.0,90855.0,0.01772]
[1765128686137,0.23111359,90865.0,90859.0,0.01100606]
[1765128686313,0.0110057,90862.0,90857.0,0.0110063]
[1765128686710,0.01100618,90858.0,90855.0,0.01772]
[1765128686929,0.22012613,90857.0,90855.0,0.01772]
[1765128687126,0.22012613,90857.0,90847.0,0.02220738]
[1765128687127,0.23114769,90851.0,90847.0,0.02220738]
[1765128687322,0.23114769,90851.0,90843.0,0.23116677]
[1765128687323,0.01100751,90847.0,90843.0,0.011008]
[1765128687529,0.01100691,90852.0,90845.0,0.01100776]
[1765128687795,0.23114943,90851.0,90844.0,0.01100788]
[1765128687931,0.09898,90854.0,90849.0,0.01100727]
[1765128688179,0.01100727,90849.0,90845.0,0.01140104]
[1765128688561,0.22015036,90847.0,90845.0,0.00039328]
[1765128689039,0.23115532,90848.0,90845.0,0.00039328]
[1765128689185,0.01100727,90849.0,90845.0,0.22089486]
[1765128689396,0.10624542,90857.0,90845.0,0.00074073]
[1765128689397,0.01100642,90856.0,90845.0,0.00074073]
[1765128689610,0.01100667,90854.0,90851.0,0.02220738]
[1765128689753,0.00126542,90857.0,90854.0,0.01100667]
[1765128690118,0.00126542,90857.0,90849.0,0.01100727]
[1765128690119,0.01100485,90869.0,90856.0,0.00034745]
[1765128690344,0.01100448,90872.0,90864.0,0.01100545]
[1765128690496,0.01100485,90869.0,90866.0,0.01100521]
[1765128690703,0.01100606,90859.0,90854.0,0.01100667]
[1765128690905,0.22009948,90868.0,90863.0,0.01100557]
[1765128691107,0.01100509,90867.0,90864.0,0.01100545]
[1765128691285,0.01100545,90864.0,90859.0,0.01100606]
[1765128691490,0.01100606,90859.0,90853.0,0.01772]
[1765128691899,0.06599,90857.0,90853.0,0.01772]
[1765128692105,0.07199,90857.0,90853.0,0.01772]
[1765128692310,0.01100679,90853.0,90846.0,0.01100763]
[1765128692492,0.01100715,90850.0,90848.0,0.02282877]
[1765128692697,0.23115148,90850.0,90848.0,0.02282877]
[1765128692897,0.23115532,90848.0,90845.0,0.52880237]
[1765128693098,0.23115532,90848.0,90847.0,0.00088663]
[1765128693348,0.04884,90849.0,90847.0,0.00088663]
[1765128693553,0.16497,90848.0,90846.0,0.02285097]
[1765128693749,0.28457036,90847.0,90846.0,0.02285097]
[1765128693960,0.38355036,90847.0,90845.0,0.52914982]
[1765128694165,0.16495,90846.0,90845.0,0.52914982]
[1765128694986,0.002,90848.0,90845.0,0.52914982]
[1765128695186,0.09898,90848.0,90845.0,0.52914982]
[1765128695395,0.05184,90849.0,90845.0,0.52914982]
[1765128695595,0.06284727,90849.0,90845.0,0.52914982]
[1765128695796,0.04884,90849.0,90845.0,0.52914982]
[1765128696065,0.10098,90848.0,90845.0,0.52914982]
[1765128696242,0.11198739,90848.0,90846.0,0.0229014]
[1765128696534,0.11198739,90848.0,90845.0,0.52914982]
[1765128696535,0.22015036,90847.0,90845.0,0.52914982]
[1765128696739,0.05284,90849.0,90846.0,0.25406058]
[1765128696982,0.04884,90861.0,90858.0,0.01100618]
[1765128697181,0.23109612,90872.0,90864.0,0.2311136]
[1765128697387,0.01100376,90878.0,90865.0,0.02220738]
[1765128697515,0.01100376,90878.0,90873.0,0.01100436]
[1765128697728,0.09898,90881.0,90874.0,0.01100424]
[1765128697729,0.1099834,90881.0,90874.0,0.01100424]